Cogmind - Beta 12 @@@ ROGUE MODE // 2023.05.01 @ 23:03:54 Player: Dytto Result: Self-destructed Performance ------------- Evolutions (2) 1000 Regions Visited (5) 1000 Robots Destroyed (9) 45 Value Destroyed (246) 246 Prototype IDs (23) 460 Alien Tech Used (0) 0 Bonus (365) 365 TOTAL SCORE: 3116 Bonus ------- Follower Combat Kills 232 Aligned with FarCom 300 Friendly Fire -167 Cogmind --------- Core Integrity 322/550 Matter 275/300 Energy 219/265 System Corruption 4% Temperature Cool (7) Movement Core (200) Ox3 Location -8/Materials Parts ------- > --- POWER (2) -------- Improved Ion Engine > --- PROPULSION (3) --- (None) > --- UTILITY (4) ------ (None) > --- WEAPON (2) ------- EM Pulse Gun Scythe > --- INVENTORY (5) ---- High-powered Shotgun Slug Cannon Rocket Launcher Longsword +1 Peak State ------------ > --- POWER ------------ Ion Engine Ion Engine > --- PROPULSION ------- Aluminum Leg Aluminum Leg > --- UTILITY ---------- Large Battery Seismic Detector Propulsion Shielding Shock Absorption System > --- WEAPON ----------- Rocket Launcher Longsword +1 > --- INVENTORY -------- EM Pulse Gun Light EM Pulse Cannon High-powered Shotgun Slug Cannon Mining Claw [Rating: 22] Favorites ----------- Power Ion Engine Engine Ion Engine Propulsion Aluminum Leg Leg Aluminum Leg Utility Propulsion Shielding Device Seismic Detector Storage Large Battery Protection Propulsion Shielding Weapon Longsword +1 Energy Gun EM Pulse Gun Energy Cannon Light EM Pulse Cannon Ballistic Gun Light Assault Rifle Launcher Rocket Launcher Slashing Weapon Longsword +1 Build | -11 -10 -10 -10 -9 -8 ------- Run | Jun Mat Min Exi Min Mat Slots Evolved 4 | . . . . . 4 Power 1 | . . . . . 1 Propulsion 1 | . . . . . 1 Utility 2 | . . . . . 2 Weapon . | . . . . . . Parts Attached 21 | 4 4 1 1 3 8 Power 3 | 1 . . . . 2 Engine 3 | 1 . . . . 2 Core . | . . . . . . Reactor . | . . . . . . Propulsion 2 | 2 . . . . . Treads . | . . . . . . Leg 2 | 2 . . . . . Wheel . | . . . . . . Hover . | . . . . . . Flight . | . . . . . . Utility 6 | . 2 1 . . 3 Device 3 | . 1 . . . 2 Storage 1 | . . 1 . . . Processor . | . . . . . . Hackware . | . . . . . . Protection 2 | . 1 . . . 1 Artifact . | . . . . . . Weapon 10 | 1 2 . 1 3 3 Energy Gun 3 | . 1 . . 1 1 Energy Cannon 1 | . . . . . 1 Ballistic Gun 1 | 1 . . . . . Ballistic Cannon . | . . . . . . Launcher 2 | . . . . 2 . Special Weapon . | . . . . . . Impact Weapon . | . . . . . . Slashing Weapon 3 | . 1 . 1 . 1 Piercing Weapon . | . . . . . . Special Melee Weapon . | . . . . . . Unidentified Prototypes . | . . . . . . Corrupted Parts 1 | . . . . . 1 System Corruption 4 | . . . . . 4 Parts Lost 10 | . . . . . 10 Power 2 | . . . . . 2 Propulsion 2 | . . . . . 2 Utility 5 | . . . . . 5 Weapon 1 | . . . . . 1 Highest Loss Streak 10 | . . . . . 10 To Critical Strikes . | . . . . . . Average Slot Usage (%) 93 | . 73 100 100 100 81 Engine 14 | . 14 14 14 14 17 Leg 25 | . 28 28 28 28 16 Device 4 | . 12 . . . 12 Storage 11 | . . 13 14 14 8 Protection 11 | . 2 14 14 14 8 Energy Gun 6 | . 8 14 14 2 . Launcher 5 | . . . . 11 8 Slashing Weapon 11 | . 4 14 14 14 9 Naked Turns . | . . . . . . Heaviest Build 25 | 6 11 13 14 16 25 Greatest Support 20 | 20 20 20 20 20 20 Greatest Overweight (x) 4 | 1 . . . . 4 Average Overweight (x) . | . . . . . 1 Largest Inventory Capacity 5 | 5 5 5 5 5 5 Average Capacity 5 | 5 5 5 5 5 5 Most Carried 5 | 2 4 5 5 5 5 Average Carried 4 | 1 2 3 4 4 4 Final Capacity 5 | 5 5 5 5 5 5 Final Carried 5 | 2 4 4 5 5 4 Class Distribution -------------------- 100% | Mutant Dominant Class ---------------- Mutant | -10/Materials Mutant | -10/Mines Mutant | -10/Exiles Mutant | -9/Mines Mutant | -8/Materials Resources | -11 -10 -10 -10 -9 -8 ----------- Run | Jun Mat Min Exi Min Mat Matter Collected 423 | 213 . 77 . 84 49 Remotely 19 | . . 19 . . . Salvage Created 188 | . . . . 21 167 Parts 13 | . . . . 6 7 Haulers Intercepted . | . . . . . . Recyclers Shooed . | . . . . . . Parts Field Recycled . | . . . . . . Retrieved Matter . | . . . . . . Parts Self-Destructed . | . . . . . . Prevented . | . . . . . . Kills | -11 -10 -10 -10 -9 -8 ------- Run | Jun Mat Min Exi Min Mat Combat Hostiles Destroyed 9 | . . . . 5 4 Melee 1 | . . . . . 1 Cannons 1 | . . . . . 1 AOE 7 | . . . . 5 2 Classes Destroyed 3 | . . . . 1 2 Swarmer 5 | . . . . 5 . Grunt 3 | . . . . . 3 Sentry 1 | . . . . . 1 Best Kill Streak 3 | . . . . 3 1 Combat Bots Only 3 | . . . . 3 1 Max Kills in Single Turn 2 | . . . . 2 1 Gunslinging . | . . . . . . Exploded 2 | . . . . 2 1 Melee 1 | . . . . . 1 Uniques/NPCs Destroyed . | . . . . . . Combat | -11 -10 -10 -10 -9 -8 -------- Run | Jun Mat Min Exi Min Mat Damage Taken 1038 | . . 31 . 97 910 Core 256 | . . . . 28 228 Absorbed by Shields . | . . . . . . Redirected to Shielding 54 | . . 5 . 10 39 Core Remaining (%) 94 | 100 . . . 88 . Volleys Fired 24 | . . 3 . 4 17 Largest 2 | . . 1 . 1 2 Hottest 89 | . . 40 . 33 89 Shots Fired 25 | . . 3 . 4 18 Gun 8 | . . 3 . . 5 Cannon 9 | . . . . . 9 Launcher 8 | . . . . 4 4 Special . | . . . . . . Kinetic . | . . . . . . Thermal . | . . . . . . Explosive 8 | . . . . 4 4 Electromagnetic 17 | . . 3 . . 14 Robot Hit Streak 6 | . . 3 . 1 6 Robot Miss Streak 4 | . . . . 1 4 Penetration Max . | . . . . . . Secondary Targets . | . . . . . . Shots Hit Robots 20 | . . 3 . 2 15 Core Hits 17 | . . 1 . 5 11 Critical Kills . | . . . . . . Critical Parts Destroyed . | . . . . . . Critical Strikes . | . . . . . . Melee Attacks 5 | . . . . . 5 Impact . | . . . . . . Slashing 5 | . . . . . 5 Piercing . | . . . . . . Sneak Attacks . | . . . . . . Combat Hostiles . | . . . . . . Follow-up Attacks . | . . . . . . Damage Inflicted 1153 | . . 37 . 483 633 Guns 49 | . . 37 . . 12 Cannons 147 | . . . . . 147 Explosions 789 | . . . . 483 306 Melee 168 | . . . . . 168 Ramming . | . . . . . . Kinetic . | . . . . . . Thermal . | . . . . . . Explosive 789 | . . . . 483 306 Electromagnetic 196 | . . 37 . . 159 Impact . | . . . . . . Slashing 168 | . . . . . 168 Piercing . | . . . . . . Highest Corruption 4 | . . . . . 4 Average Corruption 4 | . . . . . 4 Corruption Purged . | . . . . . . Corruption Blocked . | . . . . . . Overload Shots . | . . . . . . Overflow Damage 15 | . . . . 9 6 Projectiles . | . . . . . . Explosions 9 | . . . . 9 . Melee 6 | . . . . . 6 Knockbacks . | . . . . . . Impact . | . . . . . . Kinetic . | . . . . . . Secondary . | . . . . . . Self-Inflicted Damage 84 | . . . . 48 36 Shots 3 | . . . . 2 1 Rammed . | . . . . . . Targets Rammed . | . . . . . . Kicked . | . . . . . . Crushed . | . . . . . . Highest Temperature 200 | . . 9 . 5 200 Average Temperature 66 | . . 9 . 3 71 Received Heat Transfer 486 | . . 18 . 9 459 Siege Activations . | . . . . . . Robots Corrupted . | . . . . . . Combat Hostiles . | . . . . . . Parts Fried 2 | . . . . . 2 Impact Corruptions . | . . . . . . Robots Melted . | . . . . . . Combat Hostiles . | . . . . . . Parts Melted . | . . . . . . Heat Transferred . | . . . . . . Parts Sabotaged . | . . . . . . Parts Stolen . | . . . . . . Parts Stripped . | . . . . . . Power Chain Reactions . | . . . . . . Missiles Intercepted . | . . . . . . Alert | -11 -10 -10 -10 -9 -8 ------- Run | Jun Mat Min Exi Min Mat Peak Influence 205 | . . 116 . 205 153 Initial . | . . . . . . Average 76 | . . 75 . 86 99 Maximum Alert Level 1 | . . . . 1 . Low Security (%) 89 | 100 100 100 . 72 100 Level 1 10 | . . . . 27 . Level 2 . | . . . . . . Level 3 . | . . . . . . Level 4 . | . . . . . . Level 5 . | . . . . . . High Security . | . . . . . . Max Security . | . . . . . . Squads Dispatched 2 | . 1 . . . 1 Investigation . | . . . . . . Extermination . | . . . . . . Reinforcement 2 | . 1 . . . 1 Assault . | . . . . . . Garrison . | . . . . . . Intercept . | . . . . . . Searches Triggered . | . . . . . . Construction Impeded . | . . . . . . Haulers Reinforced . | . . . . . . Active Scanning Responses . | . . . . . . Cargo Convoy Interrupts . | . . . . . . Stealth | -11 -10 -10 -10 -9 -8 --------- Run | Jun Mat Min Exi Min Mat Distress Signals 1 | . . . . . 1 Communications Jammed . | . . . . . . Distress Signals . | . . . . . . Times Spotted 24 | . 1 4 . 8 11 Peak Tracking Total 5 | . 1 3 . 4 5 Tactical Retreats . | . . . . . . Traps | -11 -10 -10 -10 -9 -8 ------- Run | Jun Mat Min Exi Min Mat Traps Triggered . | . . . . . . Indirectly . | . . . . . . Trap Hack Attempts . | . . . . . . Triggered . | . . . . . . Disarmed . | . . . . . . Reprogrammed . | . . . . . . Reused . | . . . . . . Traps Extracted . | . . . . . . Installed . | . . . . . . Triggered . | . . . . . . Machines | -11 -10 -10 -10 -9 -8 ---------- Run | Jun Mat Min Exi Min Mat Machines Disabled 1 | . . . . 1 . Max in Single Turn 1 | . . . . 1 . Machines Repaired . | . . . . . . Machines Sabotaged . | . . . . . . Overloaded Fab Kills . | . . . . . . Hacking | -11 -10 -10 -10 -9 -8 --------- Run | Jun Mat Min Exi Min Mat Machines Accessed 4 | . 2 . 1 . 1 Terminals 3 | . 2 . . . 1 Fabricators . | . . . . . . Repair Stations . | . . . . . . Recycling Units . | . . . . . . Scanalyzers . | . . . . . . Garrison Access . | . . . . . . Total Hacks 5 | . 2 . 1 . 2 Successful 2 | . 1 . 1 . . Failed 3 | . 1 . . . 2 Catastrophic 1 | . 1 . . . . Database Lockouts . | . . . . . . Manual 2 | . 1 . 1 . . Terminals 4 | . 2 . . . 2 Fabricators . | . . . . . . Repair Stations . | . . . . . . Recycling Units . | . . . . . . Scanalyzers . | . . . . . . Garrison Access . | . . . . . . Terminal Hacks 2 | . 1 . 1 . . Locate Traps 1 | . 1 . . . . EX-Prototype ID Bank 1 | . . . 1 . . Fabricator Hacks . | . . . . . . Repair Station Hacks . | . . . . . . Recycling Unit Hacks . | . . . . . . Scanalyzer . | . . . . . . Garrison Access Hacks . | . . . . . . Unauthorized Hacks . | . . . . . . Terminals . | . . . . . . Fabricators . | . . . . . . Repair Stations . | . . . . . . Recycling Units . | . . . . . . Scanalyzers . | . . . . . . Garrison Access . | . . . . . . Data Cores Recovered . | . . . . . . Used . | . . . . . . Hacking Detections 3 | . 2 . . . 1 Full Trace Events . | . . . . . . Feedback Events . | . . . . . . Feedback Blocked . | . . . . . . Robot Schematics Acquired . | . . . . . . Robots Built . | . . . . . . Authchips . | . . . . . . Time . | . . . . . . Total Robot Build Rating . | . . . . . . Part Schematics Acquired . | . . . . . . Parts Built . | . . . . . . Authchips . | . . . . . . Time . | . . . . . . Total Part Build Rating . | . . . . . . Parts Repaired . | . . . . . . Time . | . . . . . . Parts Recycled . | . . . . . . Recycled Matter . | . . . . . . Retrieved Matter . | . . . . . . Retrieved Components . | . . . . . . Parts Scanalyzed . | . . . . . . Part Schematics Acquired . | . . . . . . Parts Damaged . | . . . . . . Bothacking | -11 -10 -10 -10 -9 -8 ------------ Run | Jun Mat Min Exi Min Mat Used RIF Installer . | . . . . . . Robots Hacked . | . . . . . . Non-combat . | . . . . . . Combat . | . . . . . . Robot Hacks Applied . | . . . . . . Relay Couplers Released . | . . . . . . Fabnet Peak Effective % . | . . . . . . Robots Rewired . | . . . . . . Allies Hacked . | . . . . . . Hacks Repelled . | . . . . . . Allies | -11 -10 -10 -10 -9 -8 -------- Run | Jun Mat Min Exi Min Mat Total Allies 5 | . . 3 . 2 . Largest Group 4 | . . 3 3 4 4 Highest-Rated Group 71 | . . 40 40 71 71 Highest-Rated Ally 31 | . . 16 16 31 31 Total Orders . | . . . . . . Ally Attacks 51 | . . 14 . 11 26 Total Damage 655 | . . 175 . 121 359 Kills 12 | . . 4 . 2 6 Allies Corrupted . | . . . . . . Allies Melted . | . . . . . . Intel | -11 -10 -10 -10 -9 -8 ------- Run | Jun Mat Min Exi Min Mat Robot Analysis Total . | . . . . . . Derelict Logs Recovered 2 | . . 1 . 1 . Drone Launches . | . . . . . . Drone Recoveries . | . . . . . . Exploration | -11 -10 -10 -10 -9 -8 ------------- Run | Jun Mat Min Exi Min Mat Turns Passed 2423 | 59 218 499 294 814 539 Spaces Moved 1741 | 40 172 374 242 656 257 Core 32 | 19 . . . . 13 Treads . | . . . . . . Legs 1709 | 21 172 374 242 656 244 Wheels . | . . . . . . Hover . | . . . . . . Flight . | . . . . . . Fastest Speed 50 | 50 120 120 120 120 50 Average Speed 129 | 109 120 120 120 120 185 Slowest Speed 250 | 120 120 120 120 120 250 Overloaded Moves . | . . . . . . Propulsion Burnouts . | . . . . . . Robots Hopped . | . . . . . . Cave-ins Triggered . | . . . . . . Exploration Rate (%) 49 | 3 30 75 62 100 29 Regions Visited 5 Branch Regions 3 Pre-discovered Areas . | . . . . . . Known Exits Taken . | . . . . . . Unknown Exits Taken 5 | 1 1 1 1 1 . Scrap Searched 4 | . . 2 . 2 . Spaces Dug . | . . . . . . Terrain Destroyed 59 | . . . . 31 28 Melee . | . . . . . . Projectile . | . . . . . . AOE 59 | . . . . 31 28 Terrain Rammed . | . . . . . . Walls Destroyed . | . . . . . . Machines Disabled . | . . . . . . Actions | -11 -10 -10 -10 -9 -8 --------- Run | Jun Mat Min Exi Min Mat Total 1872 | 53 182 422 245 678 292 Wait 68 | 8 5 39 2 12 2 Move 1736 | 39 171 373 241 655 257 Hop . | . . . . . . Pick Up 9 | 2 1 2 . 2 2 Fast Attach 14 | 4 4 1 1 . 4 Attach 2 | . . . . . 2 Detach 3 | . 1 1 1 . . Swap 5 | . . . . 3 2 Drop 6 | . . 3 . 2 1 Fire 24 | . . 3 . 4 17 Melee 5 | . . . . . 5 Ram . | . . . . . . Kick . | . . . . . . Crush . | . . . . . . Escape Stasis . | . . . . . . Rewire . | . . . . . . Trap . | . . . . . . Miscellaneous . | . . . . . . Route ------- -11/Junkyard -10/Materials (discovered 2 exits: [*Mat] / [*Min]) -10/Mines (discovered 2 exits: [*Mat] / *Exi) -10/Exiles (discovered 2 exits: [*Min x2]) -9/Mines (discovered 2 exits: *Mat x2) -8/Materials (discovered 2 exits: *Fac x2) History --------- Turn | Location | Event 6 | -11/Junkyard | Discovered new exit (range 16) 60 | -11/Junkyard | Entered Materials 203 | -10/Materials | Discovered new exit (range 14) 209 | -10/Materials | Discovered new exit (range 16) 278 | -10/Materials | Entered Mines 321 | -10/Mines | Assisted by bots powering up and referring to "LRC-V3" 326 | -10/Mines | Build established: Mutant 570 | -10/Mines | Learned location of 1 exit from Materials 577 | -10/Mines | Deemed a non-threat by the Exiles lab entrance 578 | -10/Mines | Discovered new exit (range 5) 618 | -10/Mines | Discovered new exit (range 5) 681 | -10/Mines | Received a Rocket Launcher from a helpful Derelict 777 | -10/Mines | Entered Exiles 777 | -10/Exiles | Accompanied by 3 allies 794 | -10/Exiles | Discovered new exit (range 15) 813 | -10/Exiles | Met 8R-AWN 835 | -10/Exiles | Met EX-HEX 875 | -10/Exiles | Met EX-BIN 888 | -10/Exiles | Aligned with FarCom system 889 | -10/Exiles | Given EX-Vault access code 919 | -10/Exiles | Opened EX-Vault 926 | -10/Exiles | Found Longsword +1 951 | -10/Exiles | Warned to stay clear of 0b10 Research branches 993 | -10/Exiles | Met EX-DEC 1055 | -10/Exiles | Discovered new exit (range 14) 1071 | -10/Exiles | Left Exiles lab with Longsword +1 1071 | -10/Exiles | Entered Mines 1071 | -9/Mines | Accompanied by 3 allies 1346 | -9/Mines | A weapon hastily lodged in a ceiling crevice suddenly fell to the ground 1367 | -9/Mines | Discovered new exit (range 9) 1416 | -9/Mines | Learned Materials stockpile data 1712 | -9/Mines | Discovered new exit (range 7) 1885 | -9/Mines | Entered Materials 1885 | -8/Materials | Accompanied by 4 allies 1885 | -8/Materials | Evolved 4 slots: Power x1, Propulsion x1, Utility x2 1886 | -8/Materials | Identified exit to Factory 1890 | -8/Materials | Led the pair of lost Derelicts to an unsafe place 2170 | -8/Materials | Discovered exit to Factory (range 12) 2424 | -8/Materials | Self-destructed Last Messages --------------- 02384_ Propulsion Shielding destroyed. 02387_ The unstable cave ceiling collapses. 02387_ M-13 Machinist repairs G-47 Trooper. 02388_ Aluminum Leg destroyed. 02390_ Ion Engine destroyed. 02392_ Aluminum Leg destroyed. 02393_ Ion Engine destroyed. 02393_ Lrg. Battery destroyed. 02396_ Lgt. EM Pulse Cannon destroyed. 02397_ Heat Sink fried. 02397_ Y-45 Defender destroyed. 02397_ R-06 Scavenger collects Aluminum Leg. 02400_ M-13 Machinist destroyed. 02400_ Acquired 34 matter. 02401_ R-06 Scavenger collects Particle Gun. 02402_ Acquired Corrupted Imp. Ion Engine. 02402_ Integrated Corrupted Imp. Ion Engine (+4). 02407_ Acquired Lgt. Armor Plating. 02416_ Door malfunctions. 02417_ Lgt. Armor Plating destroyed. Map ----- +----------------------------------------------------+ | ?????????????????????????????????????????????????? | | ?????????????????????????????????????????????????? | | ??????????????????????????????????????????? ????? | | ?????????????????????????????????????????? ????? | | ???????????????????????? ??????????????# ????? | | ?????????????????????? # ?????????????# ????? | | ?????????????????????? #?????????????# ????? | | ?????????????????????? #?????????????# ????? | | ?????????????????????? #??????????#### ????? | | ??????????????????????# ??????????? #???? | | ??????????????????????? ????????????? #???? | | ???????????????????????#% ??????????????# #???? | | ??????????????????????? ?###??????????# ##### | | ???????????????????????# #? ???????????# | | ???????????????????????# #! ????????????+ | | ???????????????????????#g=g# ?????????????# ^ " | | ???????????????????????/!% /??????????????## " | | ???????????????????????# #???????????????# " | | ???????????????????????# #???????????????# "" | | ???????????????????????# #???????????????# "" | | ???????????????????????# #???????????????# "" | | ???????????????????????# #???????????????#! "" | | ???????????????????????# #???????????????# "" | | ???????????????????????# =%########????????# " | | ???????????????????????# [ ########## | | ???????????????????????# @ | | ???????????????????????# ###############+ | | ???????????????????????############????????? | | ????????????????????????????????????????????? """ | | ??????????????????????????????????????????? """ | | ??????????????????????????????????????????## """ | | ???????????????????????????????????????????# = %%% | | ?????????????????????????????????????????######### | | ????????????????????????????????????????? ?# | | ?????????????????????????????????????????? # | | ?????????????????????????????????????????? """ # | | ??????????????????????????????????????????? """ # | | ??????????????????????????????????????????? """ + | | ??????????????????????????????????????????? """ # | | ???????????????????????????????????????????= """ # | | ??????????????????????????????????????????? ?# | | ??????????????????????????????????????????? ?# | | ??????????????????????????????????????????#+##+### | | ??????????????????????????????????????????# | | ??????????????????????????????????????##### | | ??????????????????????????????????????#!! | | ??????????????????????????????????????#! | | ??????????????????????????????????????#== | | ??????????????????????????????????????#== "" "" | | ??????????????????????????????????????#!! "T "" | +----------------------------------------------------+ Best States ------------- Heat Dissipation 31 Energy Generation 15 Energy Capacity 600 Matter Stores 300 Matter Capacity 300 Sight Range 16 Terrain Scan Density 10 Armor Coverage 150 Resistance: EX 25 Propulsion Shielding 33 Evasion (%) 55 Item Schematics ----------------- None Robot Schematics ------------------ None Fabricated ------------ Nothing Alien Tech Used ----------------- None Achievements -------------- None Challenges ------------ None Game ------ Seed MyomerKineticShearcannon Manual? 0 Play Time 00:17:14 Cumulative 24.7 hours Start 2023.05.01 @ 22:50:02 End 2023.05.01 @ 23:03:54 Sessions 1 Manual Loads 0 Difficulty Rogue Special Mode None Game No. 90 Rogue 54 Adventurer 36 Explorer 0 Win Type - Total 0 Types 0/0/0/0/0/0/0/0/0 Lore% 20 Gallery% 25 Achievement% 18 Wizard Run 0 Options --------- ASCII 0 Keyboard 1 Movement Numpad Keybinds 0 Fullscreen 2 Font 18/X11Bold Map View 76x50 Tactical HUD 1 Map Filters NONE Filters NONE Steam 1 RUN: 8de3d1e5-7ca5-4b70-9204-8cc5fa7a21f3